bitfinex/quotes_SOLUSD_20241222
["timestamp","ask_amount","ask_price","bid_price","bid_amount"]
[1734896238776,6.4384,179.86,179.76,43.62857714]
[1734896239090,6.4384,179.86,179.74,43.62857714]
[1734896239389,6.4384,179.86,179.75,43.62857714]
[1734896240883,6.4384,179.86,179.74,43.62857714]
[1734896241064,20.0,179.83,179.72,43.62857714]
[1734896241265,20.0,179.83,179.64,53.76337555]
[1734896241266,20.0,179.83,179.71,43.62857714]
[1734896241493,20.0,179.83,179.72,43.62857714]
[1734896241676,20.0,179.83,179.73,43.62857714]
[1734896242176,20.0,179.83,179.74,43.62857714]
[1734896242506,20.3386,179.86,179.74,43.62857714]
[1734896242669,6.4384,179.86,179.74,43.62857714]
[1734896242869,6.4384,179.86,179.75,43.62857714]
[1734896243073,6.4384,179.86,179.74,43.62857714]
[1734896243277,6.4384,179.86,179.73,43.62857714]
[1734896243671,6.4384,179.86,179.72,43.62857714]
[1734896244767,20.0,179.83,179.72,43.62857714]
[1734896245487,20.0,179.81,179.71,43.62857714]
[1734896245690,20.0,179.81,179.72,43.62857714]
[1734896245887,6.4384,179.86,179.76,43.62857714]
[1734896246104,6.4384,179.86,179.79,43.62857714]
[1734896247090,6.4384,179.86,179.78,43.62857714]
[1734896248590,6.4384,179.86,179.72,43.62857714]
[1734896248787,20.0,179.83,179.7,43.62857714]
[1734896248986,20.0,179.83,179.72,43.62857714]
[1734896249194,20.0,179.83,179.73,43.62857714]
[1734896249372,20.0,179.83,179.72,43.62857714]
[1734896249690,20.0,179.83,179.7,43.62857714]
[1734896249900,20.0,179.83,179.71,43.62857714]
[1734896250090,20.0,179.83,179.7,43.62857714]
[1734896250288,20.0,179.83,179.67,13.9143]
[1734896250289,2.9732,179.82,179.69,43.62857714]
[1734896250479,20.0,179.78,179.63,13.9168]
[1734896251793,20.0,179.78,179.63,43.62857714]
[1734896251993,20.0,179.78,179.61,43.62857714]
[1734896252200,2.9732,179.77,179.6,43.62857714]
[1734896252496,13.9074,179.76,179.6,43.62857714]
[1734896252704,13.9074,179.76,179.61,43.62857714]
[1734896253100,20.0,179.72,179.59,43.62857714]
[1734896253608,20.0,179.72,179.59,58.38380953]
[1734896253777,6.1791,179.75,179.64,43.62857714]
[1734896253974,6.1791,179.75,179.65,43.62857714]
[1734896255003,6.1791,179.75,179.63,57.54547714]
[1734896255180,6.1791,179.75,179.63,13.9169]
[1734896255998,20.0,179.72,179.59,57.54847714]
[1734896256780,2.9732,179.71,179.57,43.62857714]
[1734896256998,16.885,179.71,179.57,43.62857714]
[1734896257406,20.0,179.67,179.53,57.55367714]
[1734896259106,20.0,179.66,179.53,57.55367714]
[1734896260200,13.9135,179.69,179.55,43.62857714]
[1734896262503,6.1791,179.7,179.57,43.62857714]
[1734896263012,6.1791,179.7,179.55,43.62857714]
[1734896263191,20.0,179.67,179.55,43.62857714]
[1734896264008,3.1741,179.66,179.53,43.62857714]
[1734896264896,6.0456,179.65,179.55,43.62857714]
[1734896265212,6.0456,179.65,179.57,43.62857714]
[1734896265413,6.0456,179.65,179.59,43.62857714]
[1734896266093,6.0456,179.69,179.63,43.62857714]
[1734896266834,0.6683578,179.87,179.56,15.0380586]
[1734896266835,6.0456,179.73,179.67,43.62857714]
[1734896267127,3.1741,179.75,179.69,43.62857714]
[1734896268108,6.0456,179.78,179.7,43.62857714]
[1734896268498,6.0456,179.78,179.71,43.62857714]
[1734896270132,6.0456,179.78,179.67,13.9137]
[1734896270133,6.0456,179.78,179.73,43.62857714]
[1734896270298,3.1741,179.8,179.74,43.62857714]
[1734896271118,3.1741,179.8,179.75,43.62857714]
[1734896271416,3.1741,179.8,179.76,43.62857714]
[1734896271925,3.1741,179.8,179.77,43.62857714]
[1734896272132,6.0456,179.82,179.76,43.62857714]
[1734896272421,6.0456,179.82,179.77,20.0]
[1734896273014,6.0456,179.82,179.75,43.62857714]
[1734896273221,6.0456,179.82,179.74,13.9085]
[1734896273732,6.0456,179.82,179.74,57.53707714]
[1734896275513,6.0456,179.82,179.73,43.62857714]
[1734896276701,6.0456,179.82,179.71,43.62857714]
[1734896278521,6.0456,179.82,179.73,63.62857714]
[1734896279817,6.0456,179.82,179.75,43.62857714]
[1734896281227,6.0456,179.82,179.72,43.62857714]
[1734896282012,6.0456,179.82,179.71,20.0]
[1734896282418,3.2028,179.81,179.72,20.0]
[1734896282829,3.2028,179.81,179.68,43.62857714]
[1734896283850,3.2028,179.81,179.7,43.62857714]
[1734896285126,3.2028,179.81,179.7,57.54057714]
[1734896286949,3.2028,179.81,179.7,43.62857714]
[1734896287119,3.2028,179.81,179.68,43.62857714]
[1734896287856,20.0,179.79,179.68,43.62857714]
[1734896288514,3.0038,179.77,179.66,57.54297714]
[1734896288935,3.0038,179.77,179.66,43.62857714]
[1734896289535,20.0,179.75,179.64,43.62857714]
[1734896289734,3.0038,179.74,179.62,43.62857714]
[1734896289935,9.2767,179.74,179.6,57.54827714]
[1734896290126,20.0,179.71,179.6,57.54827714]
[1734896296043,9.2767,179.74,179.65,20.0]
[1734896296342,9.2767,179.74,179.66,43.62857714]
[1734896296545,9.2767,179.74,179.65,63.62857714]
[1734896296732,9.2767,179.74,179.65,20.0]
[1734896299136,20.0,179.71,179.59,13.9202]
[1734896299340,23.0038,179.7,179.57,43.62857714]
[1734896300330,22.7290552,179.7,179.57,43.62857714]
[1734896302051,22.7290552,179.7,179.58,13.9213]
[1734896303146,2.7290552,179.7,179.59,43.62857714]
[1734896303351,2.7290552,179.7,179.61,43.62857714]
[1734896303646,2.7290552,179.7,179.62,43.62857714]
[1734896303852,2.7290552,179.7,179.61,43.62857714]
[1734896304039,2.7290552,179.7,179.62,43.62857714]
[1734896304446,2.7290552,179.7,179.62,57.54677714]
[1734896304843,2.7290552,179.7,179.64,43.62857714]
[1734896305051,2.7290552,179.7,179.66,43.62857714]
[1734896305244,2.7290552,179.7,179.64,43.62857714]
[1734896305434,2.7290552,179.7,179.65,20.0]
[1734896306359,2.7290552,179.7,179.63,20.0]
[1734896307053,2.7290552,179.7,179.62,63.62857714]
[1734896307275,2.7290552,179.7,179.64,43.62857714]
[1734896307434,6.2729,179.74,179.69,20.0]
[1734896307636,2.9595,179.75,179.68,63.62857714]
[1734896307834,2.9595,179.75,179.69,43.62857714]
[1734896308136,2.9595,179.75,179.68,20.0]
[1734896308746,2.9595,179.75,179.65,65.64407714]
[1734896308747,2.9595,179.75,179.65,57.54407714]
[1734896308952,2.9595,179.75,179.65,13.9155]
[1734896310089,22.9595,179.75,179.66,43.62857714]
[1734896310239,2.9595,179.75,179.66,43.62857714]
[1734896310840,2.9595,179.75,179.68,63.62857714]
[1734896311039,2.9595,179.75,179.68,43.62857714]
[1734896311934,2.9595,179.75,179.69,43.62857714]
[1734896313136,2.9595,179.75,179.67,57.54247714]
[1734896313637,2.9595,179.75,179.68,43.62857714]
[1734896314035,2.9595,179.75,179.67,57.54247714]
[1734896314761,2.9595,179.75,179.68,43.62857714]
[1734896315656,2.9595,179.75,179.67,20.0]
[1734896315855,2.9595,179.75,179.66,43.62857714]
[1734896317640,2.9595,179.75,179.67,43.62857714]
[1734896318565,2.9595,179.75,179.68,43.62857714]
[1734896319260,2.9595,179.75,179.69,63.62857714]
[1734896320755,2.9595,179.75,179.69,20.0]
[1734896321057,22.9595,179.75,179.61,13.9186]
[1734896321263,20.0,179.73,179.62,43.62857714]
[1734896321666,20.0,179.73,179.63,43.62857714]
[1734896321869,13.9089,179.74,179.62,43.62857714]
[1734896322461,13.9089,179.74,179.61,13.9186]
[1734896322462,13.9089,179.74,179.61,57.54717714]
[1734896322865,22.9595,179.75,179.62,43.62857714]
[1734896323055,20.0,179.74,179.63,43.62857714]
[1734896324865,2.9595,179.75,179.65,43.62857714]
[1734896325165,2.9595,179.75,179.64,33.9167]
[1734896325166,22.9595,179.75,179.64,77.54527714]
[1734896327264,22.9595,179.75,179.64,33.9167]
[1734896328767,22.9595,179.75,179.64,77.54527714]
[1734896329865,2.9595,179.75,179.65,43.62857714]
[1734896330073,2.9595,179.75,179.66,43.62857714]
[1734896330370,2.9595,179.75,179.65,26.79575507]
[1734896331747,2.9595,179.75,179.67,26.79575507]
[1734896331957,2.9595,179.75,179.66,40.71085507]
[1734896332167,2.9595,179.75,179.66,13.9151]
[1734896332771,2.9595,179.75,179.66,40.71085507]
[1734896333747,2.9595,179.75,179.66,20.0]
[1734896333952,22.9595,179.75,179.64,20.0]
[1734896335349,22.9595,179.75,179.63,13.917]
[1734896335543,20.0,179.74,179.63,13.917]
[1734896335762,20.0,179.74,179.63,40.71275507]
[1734896337370,20.0,179.74,179.64,26.79575507]
[1734896337574,20.0,179.74,179.65,26.79575507]
[1734896337874,20.0,179.74,179.64,27.63027623]
[1734896338875,20.0,179.74,179.63,48.81275507]
[1734896339876,20.0,179.74,179.63,22.017]
[1734896341467,6.3278,179.73,179.61,0.83464124]
[1734896341671,2.9888,179.68,179.58,8.60407627]
[1734896341873,20.0,179.66,179.58,8.60407627]
[1734896342868,20.0,179.66,179.54,22.024]
[1734896344147,2.9888,179.68,179.55,26.79575507]
[1734896344351,2.9888,179.68,179.57,20.0]
[1734896344765,2.9888,179.68,179.58,20.0]
[1734896358579,2.9888,179.68,179.59,20.0]
[1734896358783,2.9888,179.68,179.62,20.0]
[1734896359167,2.9888,179.68,179.6,34.89575507]
[1734896359168,2.9888,179.68,179.63,20.0]
[1734896359678,2.9888,179.68,179.6,8.1]
[1734896360804,2.9888,179.68,179.6,22.0192]
[1734896362785,2.9888,179.68,179.6,13.9192]
[1734896362975,3.1309,179.72,179.62,22.0182]
[1734896363180,3.1309,179.72,179.62,48.81395507]
[1734896363364,3.1309,179.72,179.62,22.0182]
[1734896368768,3.1309,179.72,179.62,13.9182]
[1734896369168,3.1309,179.72,179.64,13.9167]
[1734896369382,3.1309,179.72,179.67,28.1]
[1734896369578,3.1309,179.72,179.69,20.0]
[1734896369977,3.1309,179.72,179.67,8.1]
[1734896370493,3.1309,179.72,179.64,13.9167]
[1734896374900,3.1309,179.72,179.64,48.81245507]
[1734896376299,3.1309,179.72,179.67,20.0]
[1734896376480,3.1309,179.72,179.64,48.81245507]
[1734896376685,3.1309,179.72,179.67,20.0]
[1734896378997,3.1309,179.72,179.64,8.1]
[1734896379999,3.1309,179.72,179.61,13.9189]
[1734896381984,6.162,179.69,179.59,20.0]
[1734896382299,3.1795,179.68,179.56,8.1]
[1734896382502,20.0,179.66,179.54,8.60407627]
[1734896382703,3.1795,179.64,179.54,8.60407627]
[1734896383204,6.162,179.6,179.51,8.60407627]
[1734896383678,3.1979,179.59,179.51,8.60407627]
[1734896383884,3.1113,179.55,179.51,8.60407627]
[1734896384085,3.1113,179.55,179.43,13.9323]
[1734896384506,3.1113,179.55,179.43,40.74753555]
[1734896385008,3.1113,179.55,179.44,0.12549]
[1734896386083,3.1113,179.55,179.46,20.0]
[1734896387088,3.1113,179.55,179.47,20.0]
[1734896387610,3.1113,179.55,179.44,8.1]
[1734896392791,3.1113,179.55,179.43,22.0323]
[1734896393204,27.8335,179.64,179.37,22.0375]
[1734896393205,20.0,179.51,179.37,22.0375]
[1734896393403,20.0,179.49,179.37,8.1]
[1734896393608,20.0,179.49,179.34,13.9398]
[1734896394631,20.0,179.48,179.35,0.12549]
[1734896394832,26.89277243,179.39,179.37,20.0]
[1734896395133,26.89277243,179.39,179.27,4.95911369]
[1734896395134,26.89277243,179.38,179.28,8.1]
[1734896395424,26.89277243,179.38,179.26,16.70407627]
[1734896395425,26.89277243,179.32,179.26,16.70407627]
[1734896395796,26.89277243,179.32,179.26,8.60407627]
[1734896396101,26.89277243,179.32,179.25,8.1]
[1734896396303,26.89277243,179.32,179.27,13.9448]
[1734896396525,26.89277243,179.28,179.24,0.6683578]
[1734896396738,26.89277243,179.25,179.24,0.6683578]
[1734896397632,33.14437243,179.25,179.11,35.4968487]
[1734896397813,26.89277243,179.19,179.11,35.4968487]
[1734896398008,6.2516,179.25,179.15,40.84697243]
[1734896398009,26.89277243,179.23,179.15,40.84697243]
[1734896398234,26.89277243,179.24,179.16,26.89277243]
[1734896398436,26.89277243,179.22,179.15,22.89116479]
[1734896398635,26.89277243,179.22,179.15,22.0542]
[1734896398818,26.89277243,179.24,179.21,20.0]
[1734896399238,26.89277243,179.25,179.22,0.12549]
[1734896399443,26.89277243,179.26,179.22,0.12549]
[1734896399640,26.89277243,179.26,179.22,20.12549]
[1734896400019,30.10117243,179.28,179.22,0.12549]
[1734896400231,43.76002952,179.31,179.24,0.12549]
[1734896400529,43.76002952,179.29,179.25,20.0]
[1734896400740,3.2084,179.34,179.25,20.0]
[1734896400741,43.76002952,179.28,179.25,20.0]
[1734896400927,3.2084,179.34,179.25,20.0]
[1734896401136,43.76002952,179.29,179.23,0.12549]
[1734896401645,43.76002952,179.29,179.21,63.76002952]
[1734896401939,43.76002952,179.26,179.18,57.71202952]
[1734896402140,43.76002952,179.25,179.18,57.71202952]
[1734896402344,43.76002952,179.25,179.19,0.12549]
[1734896402656,43.76002952,179.25,179.18,57.71202952]
[1734896403026,43.76002952,179.25,179.17,46.01608787]
[1734896403226,43.76002952,179.21,179.17,2.25605835]
[1734896404738,43.76002952,179.23,179.17,2.25605835]
[1734896405046,50.01162952,179.25,179.17,46.01608787]
[1734896406025,43.76002952,179.23,179.17,2.25605835]
[1734896406631,6.2516,179.25,179.17,2.25605835]
[1734896406632,50.01162952,179.25,179.17,46.01608787]
[1734896406950,43.76002952,179.25,179.18,20.0]
[1734896407123,43.76002952,179.25,179.17,46.01608787]
[1734896407852,43.76002952,179.29,179.21,43.76002952]
[1734896408044,43.76002952,179.28,179.2,43.76002952]
[1734896408354,43.76002952,179.26,179.18,57.71242952]
[1734896409045,43.76002952,179.28,179.2,43.76002952]
[1734896409422,43.76002952,179.3,179.23,20.0]
[1734896409623,43.76002952,179.3,179.24,43.76002952]
[1734896409848,43.76002952,179.3,179.23,20.0]
[1734896410049,43.76002952,179.31,179.23,63.76002952]
[1734896410337,43.76002952,179.31,179.24,13.9477]
[1734896410628,43.76002952,179.3,179.23,43.76002952]
[1734896410834,43.76002952,179.3,179.21,43.76002952]
[1734896411268,43.76002952,179.28,179.2,13.9507]
[1734896411649,43.76002952,179.28,179.19,43.76002952]
[1734896413746,43.76002952,179.26,179.19,43.76002952]
[1734896414056,39.483231,179.34,179.17,2.25605835]
[1734896414057,43.76002952,179.24,179.17,2.25605835]
[1734896414933,43.76002952,179.2,179.17,2.25605835]
[1734896415336,3.1136,179.23,179.17,2.25605835]
[1734896416352,3.1136,179.23,179.03,36.0269]
[1734896416353,43.76002952,179.18,179.03,36.0269]
[1734896416569,43.76002952,179.11,179.03,13.964]
[1734896416753,43.76002952,179.11,178.99,13.9667]
[1734896417061,43.76002952,179.07,178.96,68.8326102]
[1734896417431,43.76002952,179.07,178.98,43.76002952]
[1734896417766,3.1136,179.03,178.91,43.76002952]
[1734896417972,43.76002952,178.99,178.91,43.76002952]
[1734896418270,43.76002952,178.99,178.88,1.50636807]
[1734896418271,43.76002952,178.99,178.9,43.76002952]
[1734896418632,43.76002952,178.97,178.88,44.42838732]
[1734896418826,3.1136,179.03,178.92,43.76002952]
[1734896419066,43.76002952,179.0,178.9,43.76002952]
[1734896419229,43.76002952,178.96,178.88,0.6683578]
[1734896419429,43.76002952,178.89,178.77,8.1]
[1734896419660,43.76002952,178.89,178.8,43.76002952]
[1734896419961,43.76002952,178.87,178.78,43.76002952]
[1734896420258,43.76002952,178.87,178.77,13.9836]
[1734896420455,43.76002952,178.82,178.72,13.9875]
[1734896420642,43.76002952,178.84,178.74,43.76002952]
[1734896420826,43.76002952,178.84,178.72,13.9875]
[1734896421032,43.76002952,178.82,178.73,43.76002952]
[1734896421249,43.76002952,178.76,178.7,0.6683578]
[1734896421466,3.0144,178.91,178.7,0.6683578]
[1734896421757,43.76002952,178.78,178.7,0.6683578]
[1734896421925,43.76002952,178.74,178.7,0.6683578]
[1734896422244,43.76002952,178.72,178.7,0.6683578]
[1734896422669,46.77442952,178.74,178.7,0.6683578]
[1734896422670,63.76002952,178.71,178.7,0.6683578]
[1734896423048,43.76002952,178.71,178.7,0.6683578]
[1734896423252,43.76002952,178.71,178.59,2.25605835]
[1734896423449,43.76002952,178.7,178.6,43.76002952]
[1734896423761,43.76002952,178.7,178.59,46.01608787]
[1734896423958,43.76002952,178.74,178.65,43.76002952]
[1734896424137,39.91200036,178.75,178.65,39.91200036]
[1734896424460,39.91200036,178.79,178.7,39.91200036]
[1734896424656,39.91200036,178.84,178.74,39.91200036]
[1734896424840,39.91200036,178.84,178.6,53.90970036]
[1734896424841,39.91200036,178.84,178.76,39.91200036]
[1734896425044,39.91200036,178.79,178.63,0.261783]
[1734896425358,3.0739,178.8,178.63,0.261783]
[1734896425552,39.91200036,178.79,178.7,39.91200036]
[1734896425762,39.91200036,178.79,178.63,0.261783]
[1734896425763,39.91200036,178.77,178.66,39.91200036]
[1734896426056,39.91200036,178.75,178.66,39.91200036]
[1734896426250,3.0739,178.8,178.63,0.261783]
[1734896426251,20.0,178.66,178.63,0.261783]
[1734896426633,6.5796,178.69,178.63,0.261783]
[1734896426861,6.5796,178.69,178.63,40.17378336]
[1734896427176,3.0739,178.8,178.63,40.17378336]
[1734896427177,6.5796,178.76,178.67,39.91200036]
[1734896427337,6.5796,178.76,178.69,39.91200036]
[1734896427691,3.0739,178.8,178.71,39.91200036]
[1734896427884,22.404826,178.76,178.75,39.91200036]
[1734896428173,6.5796,178.83,178.75,39.91200036]
[1734896428372,6.5796,178.83,178.78,39.91200036]
[1734896428676,42.98590036,178.89,178.8,39.91200036]
[1734896428843,22.391811,178.87,178.8,39.91200036]
[1734896429169,3.0739,178.89,178.84,39.91200036]
[1734896429372,22.386389,178.91,178.86,39.91200036]
[1734896429537,22.386389,178.91,178.73,13.9868]
[1734896429538,39.91200036,178.89,178.79,39.91200036]
[1734896429876,39.91200036,178.89,178.81,39.91200036]
[1734896430036,22.386389,178.91,178.83,39.91200036]
[1734896430235,39.91200036,178.93,178.83,39.91200036]
[1734896430450,62.29655636,178.93,178.83,39.91200036]
[1734896430743,39.91200036,178.86,178.77,39.91200036]
[1734896430954,39.91200036,178.9,178.81,39.91200036]
[1734896431158,39.91200036,178.9,178.83,39.91200036]
[1734896431378,39.91200036,178.92,178.83,39.91200036]
[1734896432046,39.91200036,178.9,178.81,39.91200036]
[1734896432868,39.91200036,178.9,178.83,39.91200036]
[1734896433775,39.91200036,178.92,178.83,39.91200036]
[1734896434000,39.91200036,178.9,178.83,39.91200036]
[1734896434208,39.91200036,178.9,178.81,39.91200036]
[1734896434501,39.91200036,178.88,178.79,39.91200036]
[1734896434693,39.91200036,178.92,178.83,39.91200036]
[1734896435090,39.91200036,178.9,178.81,39.91200036]
[1734896435469,39.91200036,178.92,178.83,39.91200036]
[1734896435785,39.91200036,178.96,178.87,39.91200036]
[1734896435970,39.91200036,178.96,178.89,39.91200036]
[1734896436607,39.91200036,178.94,178.85,39.91200036]
[1734896437307,39.91200036,178.92,178.83,39.91200036]
[1734896437473,39.91200036,178.92,178.85,39.91200036]
[1734896437698,59.91200036,178.94,178.85,39.91200036]
[1734896438091,39.91200036,178.92,178.83,39.91200036]
[1734896438485,39.91200036,178.92,178.85,39.91200036]
[1734896438811,20.0,178.93,178.87,39.91200036]
[1734896439110,20.0,178.93,178.85,39.91200036]
[1734896439276,39.91200036,178.96,178.87,39.91200036]
[1734896439470,39.91200036,178.96,178.79,0.12549]
[1734896439471,9.6535,178.97,178.89,39.91200036]
[1734896439780,39.91200036,178.98,178.91,39.91200036]
[1734896439978,39.91200036,178.96,178.87,39.91200036]
[1734896440203,39.91200036,178.96,178.89,39.91200036]
[1734896440972,39.91200036,178.98,178.89,39.91200036]
[1734896441407,39.91200036,178.98,178.91,39.91200036]
[1734896441701,20.0,178.93,178.77,13.9837]
[1734896441881,39.91200036,178.94,178.85,39.91200036]
[1734896442577,39.91200036,178.96,178.87,39.91200036]
[1734896442772,20.0,178.93,178.87,39.91200036]
[1734896442979,20.0,178.93,178.85,39.91200036]
[1734896443199,20.0,178.87,178.79,39.91200036]
[1734896443585,20.0,178.89,178.85,39.91200036]
[1734896443896,20.0,178.89,178.83,39.91200036]
[1734896444097,39.91200036,178.88,178.79,39.91200036]
[1734896444393,39.91200036,178.88,178.63,8.361783]
[1734896444394,39.91200036,178.82,178.75,39.91200036]
[1734896444584,20.0,178.81,178.75,39.91200036]
[1734896444970,6.1659,178.87,178.79,39.91200036]
[1734896445173,20.0,178.87,178.82,39.91200036]
[1734896445396,39.91200036,178.9,178.82,39.91200036]
[1734896445588,46.07790036,178.94,178.86,39.91200036]
[1734896445781,46.07790036,178.94,178.84,39.91200036]
[1734896445985,46.07790036,178.94,178.86,39.91200036]
[1734896446194,6.1659,178.94,178.88,39.91200036]
[1734896446396,6.1659,178.94,178.86,39.91200036]
[1734896446723,46.07790036,178.94,178.86,39.91200036]
[1734896447089,6.1659,178.94,178.88,39.91200036]
[1734896447294,9.3052,178.99,178.92,39.91200036]
[1734896447619,9.3052,178.99,178.94,39.91200036]
[1734896448109,6.1659,178.99,178.92,39.91200036]
[1734896448279,39.91200036,179.04,178.96,39.91200036]
[1734896448807,39.91200036,179.04,178.81,0.96362643]
[1734896448808,3.1393,179.05,178.98,39.91200036]
[1734896449105,3.1393,179.05,178.96,39.91200036]
[1734896449394,3.1393,179.05,178.98,39.91200036]
[1734896449584,39.91200036,179.04,178.96,39.91200036]
[1734896449987,3.1393,179.05,178.98,39.91200036]
[1734896450177,39.91200036,179.04,178.96,39.91200036]
[1734896450383,39.91200036,179.02,178.94,39.91200036]
[1734896450599,39.91200036,179.04,178.96,39.91200036]
[1734896453820,39.91200036,179.0,178.94,39.91200036]
[1734896454902,39.91200036,178.98,178.9,39.91200036]
[1734896455501,39.91200036,178.98,178.92,39.91200036]
[1734896455700,39.91200036,179.02,178.94,39.91200036]
[1734896457503,39.91200036,178.97,178.89,39.91200036]
[1734896457821,39.91200036,178.9,178.83,39.91200036]
[1734896458110,3.1393,178.91,178.85,39.91200036]
[1734896458292,6.1659,178.94,178.89,39.91200036]
[1734896458605,6.1659,178.94,178.87,39.91200036]
[1734896458909,46.07790036,178.94,178.87,39.91200036]
[1734896459084,6.1659,178.94,178.87,39.91200036]
[1734896459406,46.07790036,178.94,178.87,39.91200036]
[1734896459905,6.1659,178.94,178.87,39.91200036]
[1734896460228,6.1659,178.94,178.81,13.981]
[1734896460229,6.1659,178.94,178.89,39.91200036]
[1734896460412,3.1393,178.97,178.89,39.91200036]
[1734896460878,3.1393,178.97,178.81,13.981]
[1734896460879,3.1393,178.97,178.91,39.91200036]
[1734896461078,6.1659,178.99,178.93,39.91200036]
[1734896461294,6.1659,178.99,178.84,13.9789]
[1734896461295,39.91200036,178.98,178.91,39.91200036]
[1734896461702,6.1659,178.99,178.91,39.91200036]
[1734896461909,6.1659,178.99,178.93,39.91200036]
[1734896462381,6.1659,178.99,178.81,2.9329]
[1734896462382,39.91200036,178.94,178.85,39.91200036]
[1734896462587,39.91200036,178.92,178.83,39.91200036]
[1734896465608,39.91200036,178.94,178.85,39.91200036]
[1734896465805,39.91200036,178.94,178.87,39.91200036]
[1734896466185,43.96150427,178.88,178.74,43.96150427]
[1734896466509,20.0,178.81,178.73,43.96150427]
[1734896466696,43.96150427,178.78,178.71,43.96150427]
[1734896467813,20.0,178.81,178.75,43.96150427]
[1734896468019,9.9126,178.87,178.66,0.12549]
[1734896468020,43.96150427,178.86,178.77,43.96150427]
[1734896468224,20.0,178.83,178.78,39.86886279]
[1734896468515,39.86886279,178.84,178.76,39.86886279]
[1734896469112,13.9774,178.86,178.63,0.261783]
[1734896469113,39.86886279,178.82,178.74,39.86886279]
[1734896471198,39.86886279,178.78,178.7,39.86886279]
[1734896471608,39.86886279,178.76,178.68,39.86886279]
[1734896471821,39.86886279,178.74,178.68,39.86886279]
[1734896471998,39.86886279,178.76,178.68,39.86886279]
[1734896472193,39.86886279,178.8,178.72,39.86886279]
[1734896472419,39.86886279,178.76,178.68,39.86886279]
[1734896473597,59.86886279,178.78,178.7,39.86886279]
[1734896473793,20.0,178.73,178.68,39.86886279]
[1734896473998,39.86886279,178.72,178.64,39.86886279]
[1734896474194,39.86886279,178.66,178.63,0.261783]
[1734896474392,59.86886279,178.64,178.63,0.261783]
[1734896474604,20.0,178.69,178.63,0.261783]
[1734896474800,39.86886279,178.7,178.63,0.261783]
[1734896475198,53.85876279,178.7,178.63,0.261783]
[1734896475398,6.5836,178.74,178.68,39.86886279]
[1734896475709,3.329,178.75,178.68,39.86886279]
[1734896475911,3.329,178.75,178.7,39.86886279]
[1734896476439,11.95236662,178.77,178.73,39.86886279]
[1734896476797,4.20477239,178.79,178.76,39.86886279]
[1734896477100,39.86886279,178.84,178.75,39.86886279]
[1734896477299,39.86886279,178.79,178.71,39.86886279]
[1734896477621,39.86886279,178.81,178.75,39.86886279]
[1734896477826,39.86886279,178.81,178.73,39.86886279]
[1734896478523,39.86886279,178.77,178.69,39.86886279]
[1734896478828,39.86886279,178.81,178.73,39.86886279]
[1734896480622,20.0,178.8,178.75,39.86886279]
[1734896480833,20.0,178.82,178.79,39.86886279]
[1734896481003,39.86886279,178.85,178.77,39.86886279]
[1734896481206,39.86886279,178.83,178.75,39.86886279]
[1734896481611,39.86886279,178.85,178.77,39.86886279]
[1734896481813,6.5836,178.86,178.79,39.86886279]
[1734896482007,3.329,178.87,178.81,39.86886279]
[1734896482227,39.86886279,178.89,178.81,39.86886279]
[1734896482523,46.45246279,178.91,178.83,39.86886279]
[1734896482697,39.86886279,178.89,178.83,39.86886279]
[1734896482901,46.45246279,178.91,178.83,39.86886279]
[1734896483309,46.45246279,178.91,178.83,35.86886279]
[1734896483502,6.5836,178.91,178.85,39.86886279]
[1734896483701,43.19786279,178.93,178.85,39.86886279]
[1734896483899,39.86886279,178.95,178.87,39.86886279]
[1734896484132,39.86886279,178.91,178.83,39.86886279]
[1734896484505,39.86886279,178.89,178.81,39.86886279]
[1734896484707,13.9705,178.95,178.83,39.86886279]
[1734896484708,39.86886279,178.91,178.83,39.86886279]
[1734896485108,39.86886279,178.93,178.85,39.86886279]
[1734896486226,39.86886279,178.91,178.83,39.86886279]
[1734896486424,39.86886279,178.89,178.81,39.86886279]
[1734896486630,39.86886279,178.87,178.79,39.86886279]
[1734896487113,39.86886279,178.89,178.81,39.86886279]
[1734896487313,39.86886279,178.87,178.79,39.86886279]
[1734896488325,39.86886279,178.91,178.83,39.86886279]
[1734896490131,13.9703,178.95,178.85,43.94310138]
[1734896490340,43.94310138,178.92,178.83,43.94310138]
[1734896491454,43.94310138,178.86,178.78,43.94310138]
[1734896491613,43.94310138,178.82,178.76,43.94310138]
[1734896491814,43.94310138,178.82,178.74,43.94310138]